bitfinex/quotes_ETHUSD_20260119
["timestamp","ask_amount","ask_price","bid_price","bid_amount"]
[1768851998235,0.00080368,3218.3,3218.0,0.98564392]
[1768851998870,0.00080368,3218.3,3217.9,0.001]
[1768851999273,0.94267168,3218.3,3217.9,0.001]
[1768851999473,0.94267168,3218.3,3217.9,0.98664392]
[1768851999984,0.00080368,3218.3,3217.9,0.98664392]
[1768852004166,0.00080368,3218.3,3218.0,0.9444055]
[1768852007286,0.00080368,3218.3,3218.1,0.9444055]
[1768852007660,0.002,3218.4,3218.1,0.9444055]
[1768852009799,0.002,3218.3,3218.1,0.9444055]
[1768852013205,0.002,3218.7,3218.1,3.10741502]
[1768852013405,0.002,3218.7,3218.2,0.98591529]
[1768852017604,0.002,3218.7,3218.3,0.98591529]
[1768852021712,0.002,3218.4,3218.3,0.98591529]
[1768852022815,0.002,3218.4,3218.3,4.09314581]
[1768852022997,0.00280296,3218.8,3218.5,0.98591529]
[1768852024217,0.00280296,3218.8,3218.5,1.39522987]
[1768852028738,0.00080208,3219.1,3218.6,0.98591529]
[1768852030543,0.00080208,3219.1,3218.7,0.98591529]
[1768852033837,0.002,3218.8,3218.7,0.98591529]
[1768852034554,0.00280208,3219.1,3218.7,0.98591529]
[1768852034555,0.00280208,3219.1,3218.8,0.98591529]
[1768852034749,0.00280208,3219.1,3218.8,1.39519126]
[1768852034938,0.96383327,3219.1,3218.8,0.40927597]
[1768852035141,0.96383327,3219.1,3218.6,0.98591529]
[1768852035346,0.96383327,3219.1,3218.5,0.40931458]
[1768852035520,0.96383327,3219.1,3218.4,0.51380304]
[1768852035921,4.07036338,3219.1,3218.4,0.51380304]
[1768852036239,4.07036338,3219.1,3218.4,3.62091986]
[1768852036240,0.96103119,3219.0,3218.4,3.62091986]
[1768852036421,0.96103119,3219.0,3218.4,4.60683515]
[1768852036945,0.96103119,3219.0,3218.5,0.98591529]
[1768852037166,0.96103119,3219.0,3218.6,0.46068352]
[1768852046458,0.002,3218.7,3218.6,0.46068352]
[1768852049172,0.002,3218.7,3218.4,0.51380304]
[1768852049883,0.002,3218.7,3218.4,3.62092551]
[1768852050455,0.002,3218.7,3218.4,0.51380304]
[1768852051284,0.002,3218.7,3218.4,3.62091132]
[1768852051502,0.002,3218.7,3218.4,4.52320404]
[1768852051666,0.002,3218.7,3218.5,0.4523204]
[1768852058289,0.002,3218.7,3218.5,0.90229272]
[1768852059463,0.98391824,3219.0,3218.5,0.90229272]
[1768852060390,0.98391824,3219.0,3218.4,0.51380304]
[1768852061593,0.98881026,3218.9,3218.4,0.00080304]
[1768852061774,3.10684437,3218.7,3217.9,0.00180376]
[1768852061974,0.98881026,3218.6,3217.9,0.9371878]
[1768852062315,0.98881026,3218.2,3217.7,4.0]
[1768852063589,0.98881026,3218.2,3217.7,7.1077936]
[1768852063809,0.98881026,3218.2,3217.6,4.04324891]
[1768852064100,0.98881026,3218.2,3217.6,4.80975276]
[1768852064772,0.98881026,3218.2,3217.6,1.70188789]
[1768852065474,0.98881026,3218.2,3217.6,4.80977937]
[1768852066495,0.98881026,3218.2,3217.6,1.70188789]
[1768852067185,0.98881026,3218.2,3217.6,4.8097913]
[1768852067867,0.98881026,3218.2,3217.7,0.48105952]
[1768852070012,0.98881026,3218.1,3217.9,0.001]
[1768852073615,0.98881026,3218.1,3217.5,0.51380392]
[1768852073917,0.98881026,3218.1,3217.5,4.53896546]
[1768852074211,0.98881026,3218.1,3217.5,5.30366728]
[1768852077023,0.92432281,3218.0,3217.5,2.19570925]
[1768852078320,0.92432281,3218.0,3217.5,4.38645996]
[1768852079317,0.92432281,3218.0,3217.5,1.27850574]
[1768852081327,0.92432281,3218.0,3217.6,0.91720351]
[1768852082126,0.92432281,3218.0,3217.8,0.002]
[1768852082322,0.001,3217.9,3217.8,0.002]
[1768852082513,0.92432281,3218.0,3217.8,0.002]
[1768852094542,0.92432281,3218.0,3217.5,0.00280392]
[1768852094774,0.92432281,3218.0,3217.2,0.00080464]
[1768852094775,0.92432281,3217.8,3217.2,1.43100815]
[1768852094956,0.92432281,3217.8,3217.2,5.43100815]
[1768852095476,0.92432281,3217.8,3217.2,4.00080464]
[1768852095742,0.92432281,3217.8,3216.9,0.00280496]
[1768852095743,0.92512745,3217.6,3216.9,0.00280496]
[1768852096716,3.1080031,3217.5,3216.9,0.00280496]
[1768852097026,0.92432281,3217.4,3216.9,0.00280496]
[1768852097237,0.92432281,3217.3,3216.9,0.00280496]
[1768852100761,0.92432281,3217.3,3216.9,0.92000847]
[1768852100964,3.10684437,3218.7,3217.5,0.91720351]
[1768852101263,0.92512657,3218.3,3217.6,1.43020351]
[1768852101459,0.92512657,3218.3,3217.5,0.000804]
[1768852101460,0.92512657,3218.3,3217.5,0.91800751]
[1768852101757,0.92512657,3218.3,3217.6,0.91720351]
[1768852103093,0.92512657,3218.3,3217.8,0.90580614]
[1768852103373,0.00080376,3218.3,3217.8,0.90580614]
[1768852105186,0.00080376,3218.3,3217.8,3.10768939]
[1768852105362,0.00080376,3218.3,3217.9,0.90580614]
[1768852105749,0.00080304,3218.8,3218.3,0.90580614]
[1768852106461,0.9530509,3219.1,3218.2,6.31321685]
[1768852106657,0.9530509,3219.1,3218.5,0.90580614]
[1768852107066,0.95224882,3219.0,3218.5,0.90580614]
[1768852107774,0.95224882,3219.0,3218.5,4.01284302]
[1768852110087,0.95224882,3219.0,3218.5,0.90580614]
[1768852110260,0.95224882,3219.0,3218.5,4.01283479]
[1768852110691,0.95224882,3219.0,3218.5,0.90580614]
[1768852116296,0.95224882,3219.0,3218.5,1.3071786]
[1768852116465,0.95224882,3219.0,3218.5,4.41421287]
[1768852117906,0.002,3219.0,3218.6,0.90580614]
[1768852118469,0.001,3218.7,3218.6,0.90580614]
[1768852118671,0.002,3219.0,3218.6,0.90580614]
[1768852119372,0.002,3219.0,3218.6,4.0127462]
[1768852120201,0.002,3219.0,3218.6,0.90580614]
[1768852120382,0.95224882,3219.0,3218.5,1.3071786]
[1768852120803,0.95224882,3219.0,3218.5,4.41421478]
[1768852121007,0.95224882,3219.0,3218.5,1.3071786]
[1768852125219,0.95224882,3219.0,3218.6,0.97438505]
[1768852125421,0.002,3219.0,3218.6,0.97438505]
[1768852125718,0.92599059,3219.0,3218.6,0.97438505]
[1768852126920,0.002,3219.0,3218.6,0.97438505]
[1768852130715,0.002,3219.0,3218.8,0.001]
[1768852133544,0.95983267,3219.0,3218.8,0.001]
[1768852134599,0.95783267,3218.9,3218.4,0.00080312]
[1768852134924,0.95783267,3218.7,3217.9,0.00080384]
[1768852135093,0.95783267,3218.6,3217.9,4.00080384]
[1768852135516,0.95783267,3218.6,3217.9,7.10840641]
[1768852135908,0.95783267,3218.6,3218.0,0.9084785]
[1768852139858,0.513,3218.7,3218.2,0.9084785]
[1768852140146,1.47083267,3218.7,3218.2,0.9084785]
[1768852140322,0.95783267,3218.7,3218.2,0.9084785]
[1768852142342,1.36437142,3218.7,3218.5,0.001]
[1768852142722,1.36637142,3218.7,3218.5,0.001]
[1768852144024,0.40853875,3218.7,3218.5,0.001]
[1768852144220,0.40853875,3218.7,3218.5,0.9094785]
[1768852144859,1.36637142,3218.7,3218.5,0.001]
[1768852145050,0.44739499,3218.6,3218.5,0.001]
[1768852145447,0.002,3218.7,3218.5,0.001]
[1768852145858,0.00080312,3218.8,3218.5,0.9094785]
[1768852146334,0.00080312,3218.8,3218.6,0.9084785]
[1768852146534,0.002,3219.0,3218.6,0.9084785]
[1768852146951,0.002,3219.0,3218.7,0.9084785]
[1768852154271,0.002,3219.0,3218.8,0.001]
[1768852157373,0.002,3219.0,3218.9,0.9084785]
[1768852157562,0.95783267,3219.4,3218.9,0.9084785]
[1768852159573,0.95783267,3219.4,3218.9,4.01512915]
[1768852159881,0.95783267,3219.4,3219.0,0.9084785]
[1768852160041,1.47283267,3219.5,3219.0,0.9084785]
[1768852161675,0.95783267,3219.4,3218.8,1.31111817]
[1768852163381,0.95783267,3219.4,3218.8,4.41785099]
[1768852163577,0.95783267,3219.4,3218.9,1.44144302]
[1768852164281,0.515,3219.5,3219.0,0.9482777]
[1768852164450,1.44327395,3219.5,3219.0,0.9482777]
[1768852165577,0.002,3219.5,3219.0,0.9482777]
[1768852165761,0.002,3219.5,3219.1,0.9492777]
[1768852166247,0.002,3219.4,3219.1,0.9492777]
[1768852169862,0.002,3219.4,3219.1,4.51060766]
[1768852170189,0.002,3219.5,3219.2,0.9482777]
[1768852173787,0.002,3219.5,3219.2,3.10635575]
[1768852173960,0.002,3219.5,3219.3,0.9482777]
[1768852175234,0.93027395,3219.5,3219.1,0.001]
[1768852178283,0.002,3219.2,3219.1,0.001]
[1768852178614,0.92827395,3219.4,3219.1,0.001]
[1768852181827,0.97513274,3219.3,3218.7,0.00080216]
[1768852182185,0.97513274,3219.1,3218.7,0.00080216]
[1768852185391,0.97513274,3219.0,3218.5,0.001]
[1768852185726,1.38337439,3218.9,3218.5,0.001]
[1768852185892,0.97513274,3218.9,3218.5,0.001]
[1768852187219,0.97513274,3218.9,3218.5,0.98239335]
[1768852188120,0.97513274,3218.9,3218.5,0.001]
[1768852189622,0.97513274,3218.9,3218.5,0.98239335]
[1768852189830,0.97513274,3219.0,3218.5,0.98239335]
[1768852190199,0.97513274,3219.0,3218.8,0.001]
[1768852190400,1.43466658,3219.0,3218.8,0.001]
[1768852191411,0.97513274,3219.0,3218.8,0.001]
[1768852191812,0.00080216,3219.1,3218.8,0.001]
[1768852192112,0.00080216,3219.1,3218.8,0.98239335]
[1768852196410,0.00080216,3219.1,3218.8,0.97642387]
[1768852197446,0.002,3219.5,3218.9,0.97542387]
[1768852197604,3.10809433,3219.5,3218.9,0.97542387]
[1768852198827,0.95797266,3219.4,3218.8,0.001]
[1768852199133,0.95797266,3219.4,3218.8,0.97642387]
[1768852200339,0.95797266,3219.4,3218.8,0.001]
[1768852200705,0.95797266,3219.2,3218.8,0.001]
[1768852202624,0.95997266,3218.9,3218.8,0.001]
[1768852206064,4.066624,3218.9,3218.8,0.001]
[1768852206628,0.95997266,3218.9,3218.8,0.001]
[1768852206972,1.6772763,3218.9,3218.8,0.001]
[1768852208845,4.78392764,3218.9,3218.8,0.001]
[1768852209430,0.95797266,3218.8,3218.4,0.0008032]
[1768852209690,0.95877586,3218.8,3217.9,0.00080384]
[1768852209833,0.95797266,3218.6,3217.9,0.00080384]
[1768852210973,0.95797266,3218.4,3217.9,0.00080384]
[1768852213196,0.95797266,3218.2,3217.9,0.00080384]
[1768852214175,0.95797266,3218.1,3217.9,0.00080384]
[1768852219480,0.513,3218.4,3217.9,0.97622771]
[1768852223498,3.62014826,3218.4,3217.9,0.97622771]
[1768852223794,4.05139919,3218.4,3217.9,0.97622771]
[1768852225764,0.513,3218.6,3217.9,0.97622771]
[1768852226103,3.8446994,3218.6,3217.9,0.97622771]
[1768852226265,0.94425093,3218.5,3217.9,0.97622771]
[1768852226460,0.94425093,3218.5,3217.9,0.00080384]
[1768852227514,0.000804,3217.9,3217.5,0.9271069]
[1768852227901,0.94505493,3217.9,3217.5,0.9271069]
[1768852228215,0.94505493,3217.9,3217.4,1.44069522]
[1768852228413,0.94505493,3217.9,3217.4,0.92769522]
[1768852228617,0.94505493,3217.9,3217.2,0.93049994]
[1768852228803,0.94505493,3217.9,3217.2,0.00280472]
[1768852229618,0.94505493,3217.9,3217.2,0.93049994]
[1768852231515,0.94505493,3217.9,3217.3,0.92769522]
[1768852231733,0.000804,3217.9,3217.3,0.92769522]
[1768852234115,0.000804,3217.9,3217.5,0.92769522]
[1768852234324,0.94505477,3218.3,3217.5,0.9284993]
[1768852234530,3.10803525,3218.3,3217.5,0.9284993]
[1768852235916,4.05228618,3218.3,3217.5,0.9284993]
[1768852236818,4.05228618,3218.3,3217.6,0.92769522]
[1768852237037,4.76822134,3218.3,3217.6,0.92769522]
[1768852239767,1.66098993,3218.3,3217.6,4.03559308]
[1768852239960,0.00080384,3218.3,3217.7,0.92769522]
[1768852240117,0.00080384,3218.3,3217.9,0.92769522]
[1768852240317,0.001,3218.0,3217.9,0.92769522]
[1768852241842,0.00080384,3218.3,3217.9,0.98751936]
[1768852245015,0.93950438,3218.3,3217.9,0.98751936]
[1768852245247,0.93950438,3218.3,3217.8,0.002]
[1768852245449,0.93950438,3218.3,3217.8,0.98951936]
[1768852247445,0.93950438,3218.3,3217.8,1.4505601]
[1768852247647,4.04675824,3218.3,3217.8,1.4505601]
[1768852249053,0.93870054,3218.2,3217.8,0.98951936]
[1768852251100,4.04603949,3218.2,3217.8,0.98951936]
[1768852251262,4.04603949,3218.2,3217.8,0.002]
[1768852251263,0.93870054,3218.1,3217.8,0.002]
[1768852252386,0.93970054,3218.0,3217.8,0.002]
[1768852252901,0.001,3218.0,3217.8,0.002]
[1768852255772,0.001,3218.0,3217.8,0.91825374]
[1768852258113,0.001,3218.0,3217.9,0.91625374]
[1768852258415,0.001,3218.0,3217.8,0.002]
[1768852261320,0.92284511,3218.0,3217.8,0.002]
[1768852262822,0.001,3218.0,3217.8,0.91825374]
[1768852263011,0.001,3218.0,3217.8,0.002]
[1768852265729,0.001,3218.0,3217.8,0.91825374]
[1768852266525,0.00080384,3218.3,3217.9,0.91625374]
[1768852267339,0.00080384,3218.3,3217.9,0.91015614]
[1768852273862,0.92264895,3218.3,3217.8,0.002]
[1768852274017,0.92264895,3218.3,3217.8,0.91825374]
[1768852274714,4.02988959,3218.3,3217.8,0.91825374]
[1768852275647,0.001,3218.0,3217.8,0.91825374]
[1768852280664,0.001,3218.0,3217.8,0.002]
[1768852281972,0.00080384,3218.3,3217.9,0.91625374]
[1768852282461,4.02988555,3218.3,3217.8,0.76669351]
[1768852282654,4.02988555,3218.3,3217.8,0.91825374]
[1768852282965,0.92264895,3218.3,3217.8,0.91825374]
[1768852284666,0.9211648,3218.2,3217.8,0.91825374]
[1768852285739,0.92196864,3218.3,3217.8,0.91825374]
[1768852287071,0.001,3218.0,3217.8,0.91825374]
[1768852287368,0.001,3218.0,3217.8,1.37216925]
[1768852289069,0.001,3218.0,3217.8,0.91825374]
[1768852293278,0.001,3218.0,3217.8,0.002]
[1768852295330,0.001,3218.0,3217.8,0.96907971]
[1768852302539,0.001,3218.0,3217.8,0.002]
[1768852305328,0.90818248,3218.0,3217.8,0.002]
[1768852309695,0.90818248,3218.0,3217.5,0.00280408]
[1768852309901,0.90818248,3218.0,3217.0,4.0]
[1768852309902,0.90798656,3217.9,3217.0,4.0]
[1768852310100,0.90718248,3217.7,3217.0,4.0]
[1768852310833,0.90718248,3217.6,3216.9,4.58170921]
[1768852311730,0.90718248,3217.6,3217.0,3.10848209]
[1768852311917,0.90718248,3217.6,3217.0,0.95734669]
[1768852311918,0.74506648,3217.6,3217.0,0.95734669]
[1768852312730,0.00080408,3217.9,3217.3,3.10819631]
[1768852312905,0.97392459,3217.8,3217.1,0.9079891]
[1768852316636,0.97392459,3217.8,3217.3,3.10819631]
[1768852317638,0.97392459,3217.8,3217.3,4.01618541]
[1768852317942,0.97392459,3217.8,3217.4,0.9079891]
[1768852318119,0.00080408,3217.9,3217.4,0.9079891]
[1768852318542,0.97472867,3217.9,3217.4,0.9079891]
[1768852318851,0.97472867,3217.9,3217.4,4.01602981]
[1768852320650,0.97472867,3217.9,3217.4,0.9079891]
[1768852320857,0.97392459,3217.8,3217.3,3.1081475]
[1768852321151,0.97392459,3217.8,3217.4,3.10805233]
[1768852321457,0.97392459,3217.8,3217.5,0.002]
[1768852326780,0.97392459,3217.8,3217.2,3.11104941]
[1768852327055,0.97392459,3217.8,3217.2,0.00280472]
[1768852327056,0.97392459,3217.6,3217.2,0.00280472]
[1768852327259,0.97392459,3217.5,3217.2,0.00280472]
[1768852330229,3.10771599,3217.8,3217.2,0.00280472]
[1768852330230,0.97392459,3217.8,3217.3,0.9079891]
[1768852330436,0.00080408,3217.9,3217.3,0.9079891]
[1768852330858,0.00080408,3217.9,3217.5,0.9079891]
[1768852333570,0.001,3217.6,3217.5,0.9079891]
[1768852333736,0.00080408,3217.9,3217.5,1.62040958]
[1768852334033,0.00080408,3217.9,3217.5,0.9079891]
[1768852336880,0.00080408,3217.9,3217.6,0.9079891]
[1768852337388,0.97472867,3217.9,3217.4,4.01602712]
[1768852337567,0.97472867,3217.9,3217.5,0.9079891]
[1768852338282,0.97472867,3217.9,3217.2,0.00280472]
[1768852338470,0.97392459,3217.8,3217.2,0.00280472]
[1768852338813,0.97392459,3217.6,3217.2,0.00280472]
[1768852345305,0.97392459,3217.6,3217.5,0.002]
[1768852345492,0.97392459,3217.6,3217.2,0.00280472]
[1768852347367,0.97392459,3217.6,3216.7,3.10873775]
[1768852347368,0.90012214,3217.3,3216.7,3.10873775]
[1768852347569,6.7004958,3217.1,3216.6,0.985509]
[1768852347794,0.90012214,3217.0,3216.6,1.498509]
[1768852348802,0.90012214,3217.0,3216.6,0.985509]
[1768852350625,0.90012214,3217.0,3216.6,0.0028016]
[1768852351338,0.90012214,3217.0,3216.6,3.11167141]
[1768852351514,0.90012214,3217.0,3216.6,4.09437881]
[1768852351714,0.90012214,3217.2,3216.6,4.09437881]
[1768852352698,0.90012214,3217.2,3216.6,3.11167141]
[1768852352904,0.90012214,3217.2,3216.7,0.9827074]
[1768852355842,0.90012214,3217.2,3216.7,4.09147377]
[1768852356331,0.90012214,3217.2,3216.7,4.86329661]
[1768852356929,0.90012214,3217.2,3217.0,0.002]
[1768852359410,0.90012214,3217.1,3216.6,0.0028016]
[1768852359944,0.9009271,3217.3,3216.7,0.9827074]
[1768852360522,0.90012214,3217.2,3216.7,0.9827074]
[1768852368026,0.90012214,3217.2,3216.6,0.0028016]
[1768852368432,0.97777062,3217.1,3216.6,0.0028016]
[1768852368644,0.001,3216.9,3216.6,0.0028016]
[1768852371030,0.97877062,3216.9,3216.6,0.0028016]
[1768852371530,0.001,3216.9,3216.6,0.0028016]
[1768852385407,0.95153932,3217.2,3216.6,0.98652599]
[1768852387804,0.95153932,3217.2,3216.6,4.09531057]
[1768852388213,0.95153932,3217.2,3216.7,0.98372439]
[1768852388412,0.00080496,3217.3,3216.7,0.98372439]
[1768852388623,0.95234428,3217.3,3216.7,0.98372439]
[1768852390819,0.00080496,3217.3,3216.9,0.98372439]
[1768852391923,0.00080496,3217.3,3216.9,0.98572439]
[1768852392130,0.001,3217.0,3216.9,0.98572439]
[1768852392306,0.00080496,3217.3,3216.9,1.97520714]
[1768852392629,0.00080496,3217.3,3216.9,0.98572439]
[1768852393538,0.95153932,3217.5,3217.0,6.78409805]
[1768852394099,0.95153932,3217.5,3216.9,0.00280504]
[1768852394927,0.95153932,3217.5,3216.9,0.98652943]
[1768852395640,4.05955019,3217.5,3216.9,0.98652943]
[1768852397903,3.10801087,3217.5,3216.9,0.98652943]
[1768852398108,0.95153932,3217.4,3216.9,0.98652943]
[1768852400630,3.10819631,3217.3,3216.9,0.98652943]
[1768852403826,0.001,3217.1,3216.9,0.98652943]
[1768852406176,3.10873305,3217.6,3217.0,0.9376322]
[1768852406396,3.10873305,3217.6,3217.2,0.9376322]
[1768852407376,3.10873305,3217.6,3217.1,0.72538109]
[1768852407377,0.95147036,3217.6,3216.9,1.45343724]
[1768852407581,0.95147036,3217.6,3216.9,0.94043724]
[1768852407779,0.95147036,3217.6,3217.0,0.513]
[1768852408688,0.95066564,3217.4,3217.0,0.513]
[1768852410891,4.05882724,3217.4,3217.0,1.4506322]
[1768852411193,3.1081616,3217.4,3217.0,1.4506322]
[1768852411685,3.1081616,3217.4,3217.1,0.9376322]
[1768852412496,0.00080408,3217.9,3217.2,0.9376322]
[1768852412657,3.10777983,3217.8,3217.4,0.9376322]
[1768852412839,0.00080408,3217.9,3217.4,0.9376322]
[1768852412840,3.10842124,3217.9,3217.4,0.9376322]
[1768852413362,4.05908688,3217.9,3217.4,0.9376322]
[1768852416151,0.95146972,3217.9,3217.4,0.9376322]
[1768852416356,0.00080408,3217.9,3217.5,0.9376322]
[1768852417492,0.00080408,3217.9,3217.5,1.98950611]
[1768852421875,3.10808143,3218.3,3217.8,0.91621451]
[1768852422069,0.91866856,3218.2,3217.6,0.91621451]
[1768852422387,0.91866856,3218.2,3217.5,0.91701867]
[1768852424676,0.91866856,3218.0,3217.5,0.91701867]
[1768852424973,0.91866856,3218.0,3217.5,1.95076394]
[1768852425405,0.91866856,3218.2,3217.6,0.91621451]
[1768852425613,4.02670298,3218.3,3217.6,0.91621451]
[1768852427920,0.001,3218.0,3217.6,0.91621451]
[1768852428125,0.001,3218.0,3217.7,1.42209052]
[1768852428322,0.9194724,3218.3,3217.8,0.91621451]
[1768852428528,0.00080384,3218.3,3217.8,0.91621451]
[1768852431710,3.10684437,3218.7,3218.1,0.91621451]
[1768852431912,5.16015934,3218.7,3218.1,0.91621451]
[1768852432117,0.91866856,3218.6,3218.1,0.91621451]
[1768852432717,4.0256467,3218.6,3218.1,0.91621451]
[1768852433937,0.91866856,3218.6,3218.1,0.91621451]
[1768852434443,4.02562711,3218.6,3218.1,0.91621451]
[1768852438425,4.08636473,3218.5,3218.1,0.91621451]
[1768852438728,0.97931322,3218.4,3217.9,0.97648368]
[1768852438935,0.97931322,3218.4,3217.9,0.00080392]
[1768852439325,0.97931322,3218.4,3218.1,0.001]
[1768852442453,3.10723052,3218.3,3218.1,0.001]
[1768852442618,0.97931322,3218.3,3218.1,0.001]
[1768852444649,4.08649188,3218.4,3218.1,0.001]
[1768852451035,3.10717866,3218.4,3218.1,0.001]
[1768852453163,0.97931322,3218.5,3218.1,0.001]
[1768852454038,0.97931322,3218.5,3218.1,0.97667976]
[1768852454236,3.10696789,3218.6,3218.1,0.97667976]
[1768852457747,0.97931322,3218.5,3218.1,0.001]
[1768852461163,0.97931322,3218.3,3218.1,0.001]
[1768852461549,3.10713397,3218.4,3218.1,0.001]
[1768852465074,0.95299545,3218.4,3218.1,0.001]
[1768852466675,4.0602132,3218.4,3218.1,0.001]
[1768852471081,7.16743095,3218.4,3218.1,0.001]
[1768852471596,4.0602132,3218.4,3218.1,0.001]
[1768852473583,4.06006607,3218.5,3218.1,0.001]
[1768852473992,4.90514257,3218.5,3218.0,0.94629649]
[1768852474587,8.01221319,3218.5,3218.0,0.94629649]
[1768852476308,0.95299545,3218.4,3218.0,0.94629649]
[1768852478089,3.10723052,3218.3,3217.9,0.94710041]
[1768852478399,4.06022597,3218.3,3217.9,0.00080392]
[1768852478616,4.55075622,3218.3,3217.9,0.00080392]
[1768852482494,0.92532431,3218.2,3217.9,0.00080392]
[1768852483813,4.52308508,3218.3,3217.9,0.00080392]
[1768852485433,0.002,3218.2,3217.9,0.00080392]
[1768852486349,0.002,3218.2,3217.9,0.99726568]
[1768852490152,3.1090834,3218.5,3218.0,0.99646176]
[1768852497276,0.002,3218.2,3218.0,0.99646176]
[1768852500527,0.0008032,3218.8,3218.1,0.96345124]
[1768852500703,0.0008032,3218.8,3218.3,0.96345124]
[1768852506616,0.94409218,3218.8,3218.3,0.96345124]
[1768852506910,0.94409218,3218.8,3218.1,0.96345124]
[1768852507120,0.94328898,3218.6,3218.1,0.96345124]
[1768852508588,0.002,3218.5,3218.1,0.96345124]
[1768852510796,0.002,3218.5,3218.1,3.10742271]
[1768852510989,0.002,3218.5,3218.3,0.96345124]
[1768852511189,0.0028032,3218.8,3218.3,0.96345124]
[1768852511812,0.0028032,3218.8,3218.3,4.07064009]
[1768852512015,0.0028032,3218.8,3218.4,0.96345124]
[1768852517076,0.94609218,3218.8,3218.2,1.27419351]
[1768852517367,0.94609218,3218.8,3218.3,0.96345124]
[1768852520564,0.002,3218.5,3218.3,0.96345124]
[1768852520943,0.002,3218.5,3218.4,0.43814928]
[1768852521670,0.002,3218.5,3218.4,1.40160052]
[1768852526250,0.94609218,3218.8,3218.4,1.40160052]
[1768852526449,0.94609218,3218.8,3218.4,0.96345124]
[1768852532274,0.002,3218.5,3218.4,0.96345124]
[1768852532602,0.002,3218.5,3218.2,3.41804159]
[1768852532603,0.002,3218.5,3218.2,0.31074227]
[1768852532799,0.002,3218.5,3218.1,1.45323295]
[1768852533001,0.002,3218.5,3218.2,0.94023295]
[1768852550125,0.002,3218.5,3218.0,3.10748972]
[1768852550322,0.9727616,3218.5,3218.0,3.62048972]
[1768852550620,0.9727616,3218.5,3218.0,4.57215688]
[1768852550921,0.9727616,3218.5,3218.1,0.95166716]
[1768852551219,0.002,3218.5,3218.2,0.95166716]
[1768852552514,0.9727616,3218.5,3218.1,0.95166716]
[1768852553102,0.002,3218.5,3218.1,0.95166716]
[1768852555422,0.002,3218.5,3218.3,0.001]
[1768852581230,0.90585517,3218.5,3217.9,0.00080392]
[1768852581438,0.90385517,3218.3,3217.9,0.00080392]
[1768852582648,0.90385517,3218.3,3217.9,0.90699844]
[1768852582956,0.9629288,3218.4,3217.9,0.90699844]
[1768852585453,0.002,3218.5,3218.0,0.91729378]
[1768852586166,0.9649288,3218.5,3218.0,0.91729378]
[1768852587056,0.002,3218.5,3218.0,0.91729378]
[1768852588353,0.9649288,3218.5,3218.0,0.91729378]
[1768852590460,0.9649288,3218.5,3218.3,0.001]
[1768852591763,1.37210876,3218.5,3218.3,0.001]
[1768852596898,1.37210876,3218.5,3218.0,0.88503236]
[1768852598189,1.32664661,3218.5,3218.0,0.88503236]
[1768852598394,0.91946665,3218.5,3218.0,0.88503236]
[1768852602724,0.002,3218.2,3218.0,3.99255213]
[1768852602906,0.92146665,3218.5,3218.0,3.99255213]
[1768852603525,0.92146665,3218.5,3218.0,0.88503236]
[1768852606606,0.92146665,3218.5,3218.0,3.99253593]
[1768852606813,0.92146665,3218.5,3218.1,0.96562595]
[1768852606987,0.002,3218.5,3218.1,0.96562595]
[1768852614227,0.002,3218.5,3218.1,4.07303526]
[1768852614425,0.002,3218.5,3218.2,0.90500099]
[1768852615306,0.002,3218.5,3218.0,0.90500099]
[1768852616529,0.002,3218.5,3218.1,0.90500099]
[1768852619120,0.002,3218.5,3218.1,4.01241694]
[1768852620025,0.002,3218.5,3218.2,0.90500099]
[1768852620602,0.002,3218.5,3218.3,0.90500099]
[1768852621221,0.99071151,3218.8,3218.3,0.90500099]
[1768852623533,0.99071151,3218.8,3218.3,4.01222397]
[1768852623721,0.00080224,3219.1,3218.7,0.90500099]
[1768852624123,0.98990831,3219.5,3218.7,0.90500099]
[1768852624437,0.002,3219.5,3219.0,0.90500099]
[1768852624944,0.98990831,3219.5,3219.0,0.90500099]
[1768852628460,0.98990831,3219.5,3219.1,0.90500099]
[1768852629030,4.09600143,3219.5,3219.1,0.90500099]
[1768852630264,0.98990831,3219.5,3219.1,0.90500099]
[1768852636657,0.002,3219.5,3219.1,0.90500099]
[1768852637768,0.002,3219.2,3219.1,0.90500099]
[1768852640367,0.002,3219.5,3219.2,0.90500099]
[1768852641873,0.002,3219.6,3219.1,0.90500099]
[1768852642061,0.002,3219.8,3219.3,0.90500099]
[1768852647572,0.002,3220.0,3219.4,0.93267878]
[1768852647783,0.002,3220.0,3219.5,0.93267878]
[1768852647969,0.95937377,3220.0,3219.5,0.93267878]
[1768852648170,3.10568651,3219.9,3219.5,0.93267878]
[1768852648368,4.06500326,3220.0,3219.5,0.93267878]
[1768852649148,7.17063275,3220.0,3219.5,0.93267878]
[1768852649686,7.17063275,3220.0,3219.5,0.93367878]
[1768852656393,0.95737377,3219.9,3219.3,6.30221067]
[1768852656594,0.95737377,3219.9,3219.4,0.93267878]
[1768852656780,0.95737377,3219.9,3219.3,0.513]
[1768852657897,7.16893969,3219.8,3219.3,0.513]
[1768852658096,6.21156592,3219.8,3219.3,0.513]
[1768852658307,0.95737377,3219.7,3219.3,0.513]
[1768852658612,0.95737377,3219.7,3218.8,0.93267878]
[1768852658808,0.95737377,3219.7,3219.0,0.93267878]
[1768852659714,3.10597589,3219.6,3219.0,0.93267878]
[1768852660909,4.01360938,3219.6,3219.0,0.93267878]
[1768852661108,4.01360938,3219.6,3219.3,0.001]
[1768852671004,3.10597589,3219.6,3219.3,0.001]
[1768852672378,4.01558207,3219.7,3219.3,0.001]
[1768852672575,3.10794858,3219.7,3219.3,0.93653732]
[1768852673128,0.002,3219.7,3219.3,0.93653732]
[1768852675617,0.002,3220.0,3219.4,0.99552654]
[1768852675800,3.10763048,3220.0,3219.6,0.99552654]
[1768852676823,7.17235728,3220.0,3219.6,0.99552654]
[1768852677025,0.95909632,3219.9,3219.3,0.99652654]
[1768852678291,0.95909632,3219.7,3219.3,0.001]
[1768852678798,0.95909632,3219.7,3219.3,0.99652654]
[1768852679129,3.10569706,3219.9,3219.4,0.99552654]
[1768852679317,3.10569706,3219.9,3219.6,0.99552654]
[1768852679917,3.10569706,3219.9,3219.3,5.79021067]
[1768852680104,3.10569706,3219.9,3219.4,0.99552654]
[1768852680309,6.21139412,3219.9,3219.4,0.99552654]
[1768852680642,7.17049044,3219.9,3219.4,0.99552654]
[1768852680931,0.95909632,3219.8,3219.3,0.001]
[1768852681294,0.95909632,3219.8,3219.3,0.99652654]
[1768852681498,3.10569706,3219.9,3219.3,0.99652654]
[1768852682833,0.002,3220.0,3219.3,0.99652654]